[Event "Early-Titled-Tuesday-Blitz-January-23-2024"]
[Site "Chess.com"]
[Date "2024.01.23"]
[Round "1"]
[White "GP9isback23"]
[Black "Rgoltsman"]
[Result "1-0"]
[WhiteElo "2610"]
[BlackElo "2269"]
[TimeControl "180+1"]
[EndTime "8:05:58 PST"]
[Termination "GP9isback23 won by resignation"]

1. d4 {[%clk 0:02:55.4]} 1... g6 {[%clk 0:02:59.9]} 2. Nf3 {[%clk 0:02:54.9]}
2... Bg7 {[%clk 0:02:59.5]} 3. e3 {[%clk 0:02:55.8]} 3... c5 {[%clk 0:02:59.3]}
4. Be2 {[%clk 0:02:56.7]} 4... Nf6 {[%clk 0:02:58.8]} 5. O-O {[%clk 0:02:54.6]}
5... O-O {[%clk 0:02:58.9]} 6. c3 {[%clk 0:02:55.2]} 6... d6 {[%clk 0:02:58.7]}
7. b4 {[%clk 0:02:46.1]} 7... Ne4 {[%clk 0:02:41]} 8. Bb2 {[%clk 0:02:45.2]}
8... a5 {[%clk 0:02:32.7]} 9. bxc5 {[%clk 0:02:41.6]} 9... dxc5 {[%clk
0:02:32.1]} 10. Nbd2 {[%clk 0:02:42.3]} 10... Bf5 {[%clk 0:02:24.7]} 11. a4
{[%clk 0:02:32.4]} 11... Qb6 {[%clk 0:02:21.2]} 12. Nc4 {[%clk 0:02:30.9]} 12...
Qc7 {[%clk 0:02:06.1]} 13. Na3 {[%clk 0:02:29.2]} 13... Rd8 {[%clk 0:01:59.7]}
14. Nb5 {[%clk 0:02:28.3]} 14... Qb6 {[%clk 0:01:56.1]} 15. Qb3 {[%clk
0:02:21.2]} 15... Nc6 {[%clk 0:01:46]} 16. Rfd1 {[%clk 0:02:20.9]} 16... Rac8
{[%clk 0:01:42.2]} 17. Rac1 {[%clk 0:02:19.3]} 17... cxd4 {[%clk 0:01:39.2]} 18.
cxd4 {[%clk 0:02:17.3]} 18... Nb4 {[%clk 0:01:37.6]} 19. Ba3 {[%clk 0:02:16.7]}
19... Be6 {[%clk 0:01:34.2]} 20. Qb2 {[%clk 0:02:12.9]} 20... Rxc1 {[%clk
0:01:05.7]} 21. Rxc1 {[%clk 0:02:08.2]} 21... Nd5 {[%clk 0:00:57.2]} 22. h3
{[%clk 0:02:00.5]} 22... Nd6 {[%clk 0:00:53.8]} 23. Bc5 {[%clk 0:01:56.4]} 23...
Qc6 {[%clk 0:00:18.6]} 24. Bxd6 {[%clk 0:01:56.5]} 24... Qxc1+ {[%clk 0:00:18]}
25. Qxc1 {[%clk 0:01:56.3]} 25... exd6 {[%clk 0:00:18.6]} 26. Nd2 {[%clk
0:01:52.9]} 26... Rc8 {[%clk 0:00:19]} 27. Qb2 {[%clk 0:01:52.3]} 27... Nb4
{[%clk 0:00:19.2]} 28. Nc3 {[%clk 0:01:46.9]} 28... d5 {[%clk 0:00:16.9]} 29.
Bb5 {[%clk 0:01:45.7]} 29... Bf8 {[%clk 0:00:16.2]} 30. Nb3 {[%clk 0:01:44.1]}
30... b6 {[%clk 0:00:14.9]} 31. Kf1 {[%clk 0:01:42.3]} 31... Rc7 {[%clk
0:00:14.8]} 32. Ke2 {[%clk 0:01:41.9]} 32... Bc8 {[%clk 0:00:13.3]} 33. Na1
{[%clk 0:01:37.6]} 33... Ba6 {[%clk 0:00:11.3]} 34. Bxa6 {[%clk 0:01:35.7]}
34... Nxa6 {[%clk 0:00:12.2]} 35. Nc2 {[%clk 0:01:35.3]} 35... Nb4 {[%clk
0:00:11.6]} 36. Nxb4 {[%clk 0:01:34.5]} 36... axb4 {[%clk 0:00:11.8]} 37. Nxd5
{[%clk 0:01:35.1]} 37... Ra7 {[%clk 0:00:09.3]} 38. Nf6+ {[%clk 0:01:34.4]} 1-0

[Event "Early-Titled-Tuesday-Blitz-January-23-2024"]
[Site "Chess.com"]
[Date "2024.01.23"]
[Round "1"]
[White "LyonBeast"]
[Black "oganromchess"]
[Result "1-0"]
[WhiteElo "3158"]
[BlackElo "2538"]
[TimeControl "180+1"]
[EndTime "8:06:02 PST"]
[Termination "LyonBeast won on time"]

1. e4 {[%clk 0:02:56.4]} 1... e6 {[%clk 0:02:59.8]} 2. d4 {[%clk 0:02:55.4]}
2... d5 {[%clk 0:02:59.9]} 3. e5 {[%clk 0:02:50.7]} 3... c5 {[%clk 0:02:59.5]}
4. c3 {[%clk 0:02:49.3]} 4... Nc6 {[%clk 0:02:59]} 5. Nf3 {[%clk 0:02:48.9]}
5... Nh6 {[%clk 0:02:58.4]} 6. a3 {[%clk 0:02:43.3]} 6... a5 {[%clk 0:02:49]} 7.
Bb5 {[%clk 0:02:39.6]} 7... Bd7 {[%clk 0:02:26.7]} 8. Ba4 {[%clk 0:02:19]} 8...
Nf5 {[%clk 0:02:06.8]} 9. O-O {[%clk 0:02:10.2]} 9... Qb6 {[%clk 0:01:37.4]} 10.
g4 {[%clk 0:02:08.2]} 10... Nh6 {[%clk 0:01:31.7]} 11. h3 {[%clk 0:02:07.5]}
11... Ng8 {[%clk 0:01:03.6]} 12. dxc5 {[%clk 0:01:57.9]} 12... Bxc5 {[%clk
0:01:00.7]} 13. b4 {[%clk 0:01:58.4]} 13... Be7 {[%clk 0:00:56.6]} 14. Re1
{[%clk 0:01:51.4]} 14... h5 {[%clk 0:00:55.8]} 15. g5 {[%clk 0:01:50.8]} 15...
h4 {[%clk 0:00:54.7]} 16. b5 {[%clk 0:01:41.5]} 16... Na7 {[%clk 0:00:49.7]} 17.
Be3 {[%clk 0:01:40.5]} 17... Qd8 {[%clk 0:00:48.4]} 18. c4 {[%clk 0:01:38.9]}
18... dxc4 {[%clk 0:00:35.4]} 19. Nc3 {[%clk 0:01:39.3]} 19... Nc8 {[%clk
0:00:34.1]} 20. Qd4 {[%clk 0:01:40]} 20... b6 {[%clk 0:00:27]} 21. Ne4 {[%clk
0:01:40.2]} 21... Qc7 {[%clk 0:00:24.6]} 22. Rac1 {[%clk 0:01:38.3]} 22... Bxa3
{[%clk 0:00:19.2]} 23. Rxc4 {[%clk 0:01:38.9]} 23... Qb7 {[%clk 0:00:11.9]} 24.
Nd6+ {[%clk 0:01:28]} 24... Bxd6 {[%clk 0:00:11.3]} 25. exd6 {[%clk 0:01:28.9]}
25... Qxf3 {[%clk 0:00:08.5]} 26. Qxg7 {[%clk 0:01:28.7]} 26... Qxh3 {[%clk
0:00:05.4]} 27. Qxh8 {[%clk 0:01:27.4]} 27... Kf8 {[%clk 0:00:05.7]} 28. Rxh4
{[%clk 0:01:26.9]} 28... Qf3 {[%clk 0:00:04.8]} 29. Bd4 {[%clk 0:01:27.2]} 29...
Nxd6 {[%clk 0:00:04.7]} 30. Qxg8+ {[%clk 0:01:27.5]} 1-0

[Event "Early-Titled-Tuesday-Blitz-January-23-2024"]
[Site "Chess.com"]
[Date "2024.01.23"]
[Round "1"]
[White "tptagain"]
[Black "Predator0608"]
[Result "1-0"]
[WhiteElo "2906"]
[BlackElo "2495"]
[TimeControl "180+1"]
[EndTime "8:06:04 PST"]
[Termination "tptagain won by resignation"]

1. d4 {[%clk 0:03:00.9]} 1... Nf6 {[%clk 0:03:00.2]} 2. Nf3 {[%clk 0:03:01.4]}
2... b6 {[%clk 0:03:00.7]} 3. Bg5 {[%clk 0:03:01.3]} 3... Ne4 {[%clk 0:03:00.1]}
4. Bh4 {[%clk 0:03:01.3]} 4... Bb7 {[%clk 0:03:00.4]} 5. Nbd2 {[%clk 0:03:01.8]}
5... g6 {[%clk 0:02:52.7]} 6. Nxe4 {[%clk 0:02:59.4]} 6... Bxe4 {[%clk
0:02:53.6]} 7. d5 {[%clk 0:02:52.5]} 7... Bg7 {[%clk 0:02:51.3]} 8. Ng5 {[%clk
0:02:52.7]} 8... Bf5 {[%clk 0:02:45.3]} 9. e4 {[%clk 0:02:51.7]} 9... h6 {[%clk
0:02:13.5]} 10. Nxf7 {[%clk 0:02:47]} 10... Kxf7 {[%clk 0:02:14.2]} 11. exf5
{[%clk 0:02:47.4]} 11... Bxb2 {[%clk 0:02:10.2]} 12. fxg6+ {[%clk 0:02:43.7]}
12... Kg7 {[%clk 0:02:10.5]} 13. Bd3 {[%clk 0:02:41.6]} 13... Bc3+ {[%clk
0:02:07.4]} 14. Kf1 {[%clk 0:02:39.4]} 14... Rf8 {[%clk 0:01:59.2]} 15. Rb1
{[%clk 0:02:34.6]} 15... Bf6 {[%clk 0:01:56.2]} 16. Bg3 {[%clk 0:02:18.1]} 16...
d6 {[%clk 0:01:55.7]} 17. Qh5 {[%clk 0:02:15.4]} 17... Nd7 {[%clk 0:01:50.6]}
18. Bf4 {[%clk 0:02:14.2]} 18... Rh8 {[%clk 0:01:50.6]} 19. h4 {[%clk
0:02:10.7]} 19... Ne5 {[%clk 0:01:46.6]} 20. Re1 {[%clk 0:02:02.8]} 20... a5
{[%clk 0:00:49.7]} 21. Rh3 {[%clk 0:01:51.3]} 21... a4 {[%clk 0:00:47.1]} 22.
Bxe5 {[%clk 0:01:45.1]} 22... dxe5 {[%clk 0:00:48]} 23. Rxe5 {[%clk 0:01:45.1]}
23... Ra5 {[%clk 0:00:46.3]} 24. c4 {[%clk 0:01:36.7]} 24... Rf8 {[%clk
0:00:40.2]} 25. Re6 {[%clk 0:01:26.6]} 25... Rc5 {[%clk 0:00:35.9]} 26. Rf3
{[%clk 0:01:07.4]} 26... b5 {[%clk 0:00:34.9]} 27. g4 {[%clk 0:01:06.9]} 27...
bxc4 {[%clk 0:00:33]} 28. g5 {[%clk 0:01:06.8]} 28... cxd3 {[%clk 0:00:20.4]}
29. Qxh6+ {[%clk 0:01:06]} 1-0

[Event "Early-Titled-Tuesday-Blitz-January-23-2024"]
[Site "Chess.com"]
[Date "2024.01.23"]
[Round "1"]
[White "iwanyu"]
[Black "Chessbard1972"]
[Result "1-0"]
[WhiteElo "2776"]
[BlackElo "2435"]
[TimeControl "180+1"]
[EndTime "8:06:04 PST"]
[Termination "iwanyu won by resignation"]

1. d4 {[%clk 0:03:00.9]} 1... Nf6 {[%clk 0:02:57.3]} 2. c4 {[%clk 0:03:00.7]}
2... g6 {[%clk 0:02:57.3]} 3. Nf3 {[%clk 0:03:00.6]} 3... Bg7 {[%clk 0:02:57.4]}
4. g3 {[%clk 0:03:01.1]} 4... O-O {[%clk 0:02:56.8]} 5. Bg2 {[%clk 0:03:01.4]}
5... d5 {[%clk 0:02:56.9]} 6. cxd5 {[%clk 0:03:01]} 6... Nxd5 {[%clk 0:02:57.2]}
7. O-O {[%clk 0:03:01.5]} 7... Nc6 {[%clk 0:02:56.2]} 8. Nc3 {[%clk 0:03:00.4]}
8... Nb6 {[%clk 0:02:55.9]} 9. e3 {[%clk 0:03:00.4]} 9... Re8 {[%clk 0:02:55.2]}
10. h3 {[%clk 0:02:57.2]} 10... e5 {[%clk 0:02:53.3]} 11. d5 {[%clk 0:02:56.6]}
11... Na5 {[%clk 0:02:52.1]} 12. Qc2 {[%clk 0:02:56.2]} 12... c6 {[%clk
0:02:48.9]} 13. b4 {[%clk 0:02:55.8]} 13... Nac4 {[%clk 0:02:45]} 14. dxc6
{[%clk 0:02:55.6]} 14... bxc6 {[%clk 0:02:43.9]} 15. Rd1 {[%clk 0:02:55]} 15...
Qe7 {[%clk 0:02:40.3]} 16. Ne4 {[%clk 0:02:42.9]} 16... Bf5 {[%clk 0:02:34.3]}
17. Nfd2 {[%clk 0:02:40.3]} 17... Nxd2 {[%clk 0:02:28.3]} 18. Bxd2 {[%clk
0:02:38.4]} 18... Rac8 {[%clk 0:02:17.9]} 19. Rac1 {[%clk 0:02:30.9]} 19... Nd5
{[%clk 0:02:14.8]} 20. Qa4 {[%clk 0:02:28.3]} 20... h5 {[%clk 0:02:04.6]} 21.
Be1 {[%clk 0:02:15.9]} 21... Red8 {[%clk 0:01:36.9]} 22. a3 {[%clk 0:02:14.2]}
22... Bd7 {[%clk 0:01:10.9]} 23. Qxa7 {[%clk 0:02:07.3]} 23... Ra8 {[%clk
0:01:09.2]} 24. Qc5 {[%clk 0:02:06.9]} 24... Rxa3 {[%clk 0:00:59.2]} 25. Rxd5
{[%clk 0:02:00.7]} 25... Qxc5 {[%clk 0:00:38.7]} 26. Rdxc5 {[%clk 0:02:01.6]}
26... Bf8 {[%clk 0:00:38.6]} 27. Rxe5 {[%clk 0:01:54.8]} 27... Be6 {[%clk
0:00:30.2]} 28. Ra5 {[%clk 0:01:47.5]} 28... Rad3 {[%clk 0:00:27.7]} 29. Ng5
{[%clk 0:01:40.4]} 29... Rd1 {[%clk 0:00:25.3]} 30. Raa1 {[%clk 0:01:38.9]}
30... Rxc1 {[%clk 0:00:24.2]} 31. Rxc1 {[%clk 0:01:39.8]} 31... Bd5 {[%clk
0:00:23.8]} 32. Bxd5 {[%clk 0:01:38]} 32... cxd5 {[%clk 0:00:24.2]} 33. Nf3
{[%clk 0:01:36.5]} 33... Rb8 {[%clk 0:00:21.5]} 34. Rb1 {[%clk 0:01:35.6]} 34...
Bg7 {[%clk 0:00:18.1]} 35. Kf1 {[%clk 0:01:34.9]} 35... Rb6 {[%clk 0:00:17.7]}
36. Ke2 {[%clk 0:01:35]} 36... Rb5 {[%clk 0:00:17.6]} 37. Kd3 {[%clk 0:01:35.1]}
37... Kf8 {[%clk 0:00:17]} 38. Bc3 {[%clk 0:01:35.1]} 38... Bxc3 {[%clk
0:00:14.7]} 39. Kxc3 {[%clk 0:01:36]} 39... Ke7 {[%clk 0:00:14.5]} 40. Nd4
{[%clk 0:01:36.1]} 40... Rb8 {[%clk 0:00:15.2]} 41. Nc6+ {[%clk 0:01:35.9]} 1-0

[Event "Early-Titled-Tuesday-Blitz-January-23-2024"]
[Site "Chess.com"]
[Date "2024.01.23"]
[Round "1"]
[White "zurzan"]
[Black "GameOverBro"]
[Result "0-1"]
[WhiteElo "2015"]
[BlackElo "2555"]
[TimeControl "180+1"]
[EndTime "8:06:04 PST"]
[Termination "GameOverBro won by resignation"]

1. c4 {[%clk 0:03:00.9]} 1... e5 {[%clk 0:02:57.9]} 2. g3 {[%clk 0:03:00.1]}
2... Nf6 {[%clk 0:02:56.8]} 3. Bg2 {[%clk 0:02:59.7]} 3... Bc5 {[%clk
0:02:56.9]} 4. Nc3 {[%clk 0:02:57.3]} 4... O-O {[%clk 0:02:56.2]} 5. e3 {[%clk
0:02:57.3]} 5... Re8 {[%clk 0:02:55.7]} 6. Nge2 {[%clk 0:02:57.2]} 6... c6
{[%clk 0:02:56]} 7. O-O {[%clk 0:02:55.4]} 7... e4 {[%clk 0:02:48.6]} 8. h3
{[%clk 0:02:54.2]} 8... d5 {[%clk 0:02:48.5]} 9. cxd5 {[%clk 0:02:50.7]} 9...
cxd5 {[%clk 0:02:49.4]} 10. d4 {[%clk 0:02:48.5]} 10... Bd6 {[%clk 0:02:48.3]}
11. Nb5 {[%clk 0:02:44]} 11... Bf8 {[%clk 0:02:45.1]} 12. Nf4 {[%clk 0:02:40.6]}
12... a6 {[%clk 0:02:41.4]} 13. Nc3 {[%clk 0:02:39.1]} 13... b5 {[%clk
0:02:41.3]} 14. a3 {[%clk 0:02:37.7]} 14... Nc6 {[%clk 0:02:39.6]} 15. Bd2
{[%clk 0:02:31]} 15... Bb7 {[%clk 0:02:26.7]} 16. Kh2 {[%clk 0:02:30.1]} 16...
Na5 {[%clk 0:02:25.4]} 17. Qe2 {[%clk 0:02:02.2]} 17... Nc4 {[%clk 0:02:18.6]}
18. Rab1 {[%clk 0:01:54.3]} 18... g5 {[%clk 0:02:17]} 19. Nh5 {[%clk 0:01:30.3]}
19... Nxh5 {[%clk 0:02:14]} 20. Qxh5 {[%clk 0:01:27]} 20... Nxd2 {[%clk
0:02:14.2]} 21. f4 {[%clk 0:01:18.7]} 21... exf3 {[%clk 0:02:00.8]} 22. Rxf3
{[%clk 0:01:18.3]} 22... Nxf3+ {[%clk 0:02:00.4]} 23. Bxf3 {[%clk 0:01:18]}
23... b4 {[%clk 0:01:52.8]} 24. axb4 {[%clk 0:01:17.2]} 24... Bxb4 {[%clk
0:01:52.7]} 25. Rf1 {[%clk 0:01:00.8]} 25... Bxc3 {[%clk 0:01:50.8]} 26. bxc3
{[%clk 0:01:00.5]} 26... Qf6 {[%clk 0:01:47.4]} 27. Be2 {[%clk 0:00:52.8]} 27...
Qg6 {[%clk 0:01:47.1]} 28. Qf3 {[%clk 0:00:51]} 28... Rac8 {[%clk 0:01:44.7]}
29. Bd3 {[%clk 0:00:48.5]} 29... Qg7 {[%clk 0:01:40.2]} 30. Qf5 {[%clk
0:00:14.7]} 30... Rxc3 {[%clk 0:01:36.4]} 31. h4 {[%clk 0:00:15]} 31... Rxe3
{[%clk 0:01:29.8]} 32. Bb1 {[%clk 0:00:11.7]} 32... Re2+ {[%clk 0:01:27.1]} 33.
Kh3 {[%clk 0:00:09.3]} 33... Bc8 {[%clk 0:01:27.1]} 0-1

[Event "Early-Titled-Tuesday-Blitz-January-23-2024"]
[Site "Chess.com"]
[Date "2024.01.23"]
[Round "1"]
[White "joksijoksi"]
[Black "LevonAronian"]
[Result "0-1"]
[WhiteElo "2536"]
[BlackElo "3112"]
[TimeControl "180+1"]
[EndTime "8:06:05 PST"]
[Termination "LevonAronian won by checkmate"]

1. d4 {[%clk 0:03:00]} 1... Nf6 {[%clk 0:02:59.5]} 2. c4 {[%clk 0:02:57.3]} 2...
c5 {[%clk 0:02:59.5]} 3. d5 {[%clk 0:02:56.8]} 3... g6 {[%clk 0:02:59.5]} 4. Nc3
{[%clk 0:02:56.1]} 4... Bg7 {[%clk 0:02:59.7]} 5. e4 {[%clk 0:02:52.3]} 5... d6
{[%clk 0:03:00]} 6. Bd3 {[%clk 0:02:45.2]} 6... O-O {[%clk 0:02:59.5]} 7. h3
{[%clk 0:02:37.1]} 7... a6 {[%clk 0:02:56]} 8. a4 {[%clk 0:02:31.7]} 8... b6
{[%clk 0:02:54.8]} 9. Nf3 {[%clk 0:02:30.5]} 9... Nbd7 {[%clk 0:02:49.6]} 10.
O-O {[%clk 0:02:29.6]} 10... e5 {[%clk 0:02:49.7]} 11. Bg5 {[%clk 0:02:20.6]}
11... h6 {[%clk 0:02:48.5]} 12. Be3 {[%clk 0:02:17.8]} 12... Nh7 {[%clk
0:02:48.1]} 13. Qd2 {[%clk 0:02:13.4]} 13... f5 {[%clk 0:02:48.1]} 14. Bxh6
{[%clk 0:02:07.9]} 14... f4 {[%clk 0:02:48.4]} 15. Bxg7 {[%clk 0:02:06.8]} 15...
Kxg7 {[%clk 0:02:49.3]} 16. Nh2 {[%clk 0:01:51.8]} 16... Ndf6 {[%clk 0:02:44.3]}
17. f3 {[%clk 0:01:48.4]} 17... Rh8 {[%clk 0:02:43.4]} 18. a5 {[%clk 0:01:30.5]}
18... Rb8 {[%clk 0:02:39]} 19. axb6 {[%clk 0:01:26.3]} 19... Rxb6 {[%clk
0:02:38.8]} 20. Rfb1 {[%clk 0:01:21]} 20... Ng5 {[%clk 0:02:37.2]} 21. Na4
{[%clk 0:01:10.9]} 21... Rb4 {[%clk 0:02:36.4]} 22. Qc3 {[%clk 0:00:45.1]} 22...
Bxh3 {[%clk 0:02:27.3]} 23. Nxc5 {[%clk 0:00:38.2]} 23... dxc5 {[%clk
0:02:27.2]} 24. Qxe5 {[%clk 0:00:36.7]} 24... Bxg2 {[%clk 0:02:23.7]} 25. Qxg5
{[%clk 0:00:34.1]} 25... Rxh2 {[%clk 0:02:18.7]} 26. Kxh2 {[%clk 0:00:25.1]}
26... Bxf3 {[%clk 0:02:19.1]} 27. Kg1 {[%clk 0:00:09.9]} 27... Qh8 {[%clk
0:02:18.9]} 28. Kf2 {[%clk 0:00:06.6]} 28... Rb3 {[%clk 0:01:49]} 29. Rxa6
{[%clk 0:00:04.9]} 29... Qh2+ {[%clk 0:01:47.6]} 30. Ke1 {[%clk 0:00:03.1]}
30... Qh1+ {[%clk 0:01:39.8]} 31. Kf2 {[%clk 0:00:03.3]} 31... Ng4+ {[%clk
0:01:24.8]} 32. Qxg4 {[%clk 0:00:03.6]} 32... Qh2+ {[%clk 0:01:24.9]} 33. Kxf3
{[%clk 0:00:02.1]} 33... Rxd3# {[%clk 0:01:24.5]} 0-1

[Event "Early-Titled-Tuesday-Blitz-January-23-2024"]
[Site "Chess.com"]
[Date "2024.01.23"]
[Round "1"]
[White "jcibarra"]
[Black "yobdc"]
[Result "0-1"]
[WhiteElo "2837"]
[BlackElo "2528"]
[TimeControl "180+1"]
[EndTime "8:06:08 PST"]
[Termination "yobdc won by resignation"]

1. e4 {[%clk 0:03:00.9]} 1... e6 {[%clk 0:02:59.9]} 2. d4 {[%clk 0:03:01]} 2...
d5 {[%clk 0:03:00.2]} 3. Nc3 {[%clk 0:03:01.6]} 3... Nf6 {[%clk 0:02:59.8]} 4.
Bg5 {[%clk 0:03:01]} 4... dxe4 {[%clk 0:02:59.5]} 5. Nxe4 {[%clk 0:03:01.1]}
5... Be7 {[%clk 0:02:59.9]} 6. Bxf6 {[%clk 0:03:01.5]} 6... gxf6 {[%clk
0:03:00.3]} 7. Nf3 {[%clk 0:03:01.3]} 7... a6 {[%clk 0:02:59.3]} 8. Nc3 {[%clk
0:02:57.6]} 8... b5 {[%clk 0:02:50]} 9. Bd3 {[%clk 0:02:56.2]} 9... Bb7 {[%clk
0:02:49]} 10. Be4 {[%clk 0:02:56.1]} 10... Bxe4 {[%clk 0:02:37.2]} 11. Nxe4
{[%clk 0:02:57]} 11... f5 {[%clk 0:02:35.2]} 12. Ng3 {[%clk 0:02:53.4]} 12...
Qd5 {[%clk 0:02:23.7]} 13. O-O {[%clk 0:02:52.6]} 13... Nd7 {[%clk 0:02:23.5]}
14. Re1 {[%clk 0:02:45.8]} 14... c5 {[%clk 0:02:14.1]} 15. c3 {[%clk 0:02:32.1]}
15... Rd8 {[%clk 0:02:03.4]} 16. Qd2 {[%clk 0:02:27]} 16... h5 {[%clk
0:01:58.5]} 17. Ne2 {[%clk 0:02:24.2]} 17... Rg8 {[%clk 0:01:57.6]} 18. Kh1
{[%clk 0:02:16]} 18... Bd6 {[%clk 0:01:49.2]} 19. Nf4 {[%clk 0:02:13.3]} 19...
Bxf4 {[%clk 0:01:48.1]} 20. Qxf4 {[%clk 0:02:14.2]} 20... Rg4 {[%clk 0:01:38.5]}
21. Qh6 {[%clk 0:02:13.7]} 21... Ke7 {[%clk 0:01:34.4]} 22. Re3 {[%clk
0:02:07.7]} 22... Rdg8 {[%clk 0:01:33.5]} 23. g3 {[%clk 0:01:54.5]} 23... f4
{[%clk 0:01:04.7]} 24. Rd3 {[%clk 0:01:20.4]} 24... c4 {[%clk 0:01:01.4]} 25.
Re3 {[%clk 0:01:05.2]} 25... fxe3 {[%clk 0:00:58.4]} 26. Qxe3 {[%clk 0:01:06.1]}
26... Nf6 {[%clk 0:00:43.8]} 27. Kg2 {[%clk 0:01:00.9]} 27... h4 {[%clk
0:00:41.5]} 28. a4 {[%clk 0:00:55.1]} 28... Re4 {[%clk 0:00:41]} 29. Qh6 {[%clk
0:00:52.6]} 29... Re2 {[%clk 0:00:34.8]} 30. axb5 {[%clk 0:00:45.5]} 30... Rxf2+
{[%clk 0:00:33.2]} 0-1

[Event "Early-Titled-Tuesday-Blitz-January-23-2024"]
[Site "Chess.com"]
[Date "2024.01.23"]
[Round "1"]
[White "dcremisi"]
[Black "Laico"]
[Result "1-0"]
[WhiteElo "2666"]
[BlackElo "2353"]
[TimeControl "180+1"]
[EndTime "8:06:10 PST"]
[Termination "dcremisi won by resignation"]

1. d4 {[%clk 0:03:00.9]} 1... e6 {[%clk 0:03:00.1]} 2. c4 {[%clk 0:03:00.6]}
2... f5 {[%clk 0:03:00.8]} 3. Nf3 {[%clk 0:02:59.8]} 3... b6 {[%clk 0:03:01.1]}
4. g3 {[%clk 0:03:00.2]} 4... Bb7 {[%clk 0:03:01.4]} 5. Bg2 {[%clk 0:03:00.5]}
5... Nf6 {[%clk 0:03:02.1]} 6. O-O {[%clk 0:03:00.7]} 6... Be7 {[%clk
0:03:02.8]} 7. Nc3 {[%clk 0:03:01.1]} 7... Ne4 {[%clk 0:03:03.2]} 8. Qc2 {[%clk
0:03:01.1]} 8... Nxc3 {[%clk 0:03:03.2]} 9. Qxc3 {[%clk 0:03:01.3]} 9... Bf6
{[%clk 0:03:03.9]} 10. Re1 {[%clk 0:03:00.4]} 10... O-O {[%clk 0:03:04.1]} 11.
Bf4 {[%clk 0:03:00.3]} 11... d6 {[%clk 0:03:00.5]} 12. Rad1 {[%clk 0:02:57.1]}
12... Qe8 {[%clk 0:02:57.7]} 13. Qd2 {[%clk 0:02:54.1]} 13... Nd7 {[%clk
0:02:54.8]} 14. b4 {[%clk 0:02:48.4]} 14... a5 {[%clk 0:02:54]} 15. a3 {[%clk
0:02:45.1]} 15... Kh8 {[%clk 0:02:36.4]} 16. h4 {[%clk 0:02:43.2]} 16... Qh5
{[%clk 0:02:28.6]} 17. Rc1 {[%clk 0:02:32.8]} 17... Rad8 {[%clk 0:02:10.2]} 18.
bxa5 {[%clk 0:02:31.7]} 18... e5 {[%clk 0:02:00.7]} 19. Bg5 {[%clk 0:02:29.6]}
19... e4 {[%clk 0:01:50]} 20. Bxf6 {[%clk 0:02:28.1]} 20... Nxf6 {[%clk
0:01:39]} 21. Ng5 {[%clk 0:02:25]} 21... Rde8 {[%clk 0:01:24.5]} 22. axb6 {[%clk
0:02:24.5]} 22... e3 {[%clk 0:01:19.2]} 23. fxe3 {[%clk 0:02:23.9]} 23... Bxg2
{[%clk 0:01:18.9]} 24. Kxg2 {[%clk 0:02:23.7]} 24... cxb6 {[%clk 0:00:38.7]} 25.
Rf1 {[%clk 0:02:10.2]} 25... h6 {[%clk 0:00:37.6]} 26. Nh3 {[%clk 0:02:10.1]}
26... Ne4 {[%clk 0:00:35.3]} 27. Qc2 {[%clk 0:02:08.7]} 27... Qg4 {[%clk
0:00:31.8]} 28. Rf3 {[%clk 0:02:08.7]} 28... Rf6 {[%clk 0:00:25]} 29. Rcf1
{[%clk 0:02:04.3]} 29... Ref8 {[%clk 0:00:15]} 30. Nf2 {[%clk 0:02:01.6]} 30...
Nxf2 {[%clk 0:00:09.5]} 31. R1xf2 {[%clk 0:02:02]} 31... Rg6 {[%clk 0:00:08.8]}
32. c5 {[%clk 0:01:59.5]} 32... bxc5 {[%clk 0:00:08.7]} 33. dxc5 {[%clk
0:01:59.7]} 33... dxc5 {[%clk 0:00:09.6]} 34. Qxc5 {[%clk 0:01:59.6]} 34... Re8
{[%clk 0:00:09.6]} 35. Qxf5 {[%clk 0:01:58.1]} 35... Qxf5 {[%clk 0:00:08.4]} 36.
Rxf5 {[%clk 0:01:59]} 36... Rxe3 {[%clk 0:00:08.7]} 37. R5f3 {[%clk 0:01:59.6]}
37... Re4 {[%clk 0:00:08.9]} 38. Rf8+ {[%clk 0:01:58.7]} 38... Kh7 {[%clk
0:00:08.8]} 39. Ra8 {[%clk 0:01:58.9]} 39... Rxh4 {[%clk 0:00:08.1]} 40. Rff8
{[%clk 0:01:58.6]} 40... Rg5 {[%clk 0:00:07.4]} 41. Rh8+ {[%clk 0:01:58.6]}
41... Kg6 {[%clk 0:00:07.9]} 42. Ra6+ {[%clk 0:01:58.5]} 42... Kh5 {[%clk
0:00:08.4]} 43. Rf8 {[%clk 0:01:54.6]} 43... Re4 {[%clk 0:00:08.3]} 44. Kf3
{[%clk 0:01:54.1]} 44... Rc4 {[%clk 0:00:08]} 45. Rf4 {[%clk 0:01:54.1]} 45...
Rc3+ {[%clk 0:00:08.2]} 46. e3 {[%clk 0:01:54]} 46... Rg6 {[%clk 0:00:02.9]} 47.
Rh4+ {[%clk 0:01:54]} 47... Kg5 {[%clk 0:00:03.1]} 48. Rg4+ {[%clk 0:01:54.4]}
48... Kf5 {[%clk 0:00:04]} 49. Raxg6 {[%clk 0:01:53.3]} 1-0